bitfinex-derivatives/quotes_SOLF0:USTF0_20250928
["timestamp","ask_amount","ask_price","bid_price","bid_amount"]
[1759067526750,3.52561472,200.5,200.45,7.59]
[1759067526949,4.4867,200.51,200.45,7.59]
[1759067527250,3.52561472,200.5,200.45,7.59]
[1759067527456,4.4867,200.51,200.45,7.59]
[1759067527646,3.5258695,200.5,200.44,4.488]
[1759067527844,4.4867,200.51,200.45,7.59]
[1759067528044,8.0126695,200.5,200.43,7.59]
[1759067528240,3.52596163,200.49,200.43,7.59]
[1759067528439,4.4868,200.5,200.43,7.59]
[1759067528639,3.52596163,200.49,200.43,7.59]
[1759067528846,4.4868,200.5,200.43,7.59]
[1759067529151,8.01306163,200.49,200.43,7.59]
[1759067529342,4.4871,200.49,200.43,7.59]
[1759067530153,4.4871,200.49,200.43,4.4881]
[1759067530548,4.4871,200.49,200.44,7.97]
[1759067530851,4.4871,200.49,200.41,7.97]
[1759067532147,4.4871,200.49,200.43,7.97]
[1759067532952,4.4866,200.51,200.43,12.4582]
[1759067533155,3.52715611,200.5,200.43,12.4582]
[1759067533355,3.52715611,200.49,200.43,12.4582]
[1759067533553,4.4866,200.51,200.43,12.4582]
[1759067533749,3.52803573,200.5,200.43,12.4582]
[1759067533956,4.486,200.54,200.45,7.97]
[1759067534153,3.52763551,200.53,200.45,7.97]
[1759067534354,3.52763551,200.52,200.45,7.97]
[1759067534555,3.52763551,200.51,200.45,7.97]
[1759067534856,77.36174831,200.58,200.45,7.97]
[1759067535051,3.52824583,200.57,200.45,7.97]
[1759067535353,3.52824583,200.56,200.45,7.97]
[1759067535651,4.4861,200.53,200.46,4.4876]
[1759067535853,3.52824583,200.52,200.46,4.4876]
[1759067536553,3.52824583,200.52,200.47,7.97]
[1759067536753,8.01464583,200.52,200.47,7.97]
[1759067536957,3.52824583,200.51,200.47,7.97]
[1759067537148,3.52824583,200.51,200.45,7.97]
[1759067537349,3.52824583,200.5,200.45,7.97]
[1759067537552,69.7742,200.56,200.45,7.97]
[1759067537746,4.4866,200.51,200.45,12.4577]
[1759067537951,3.53131128,200.5,200.45,4.4877]
[1759067538151,4.4866,200.51,200.46,7.97]
[1759067538354,3.53231369,200.5,200.45,4.4877]
[1759067538556,4.4866,200.51,200.46,7.97]
[1759067538753,3.53231369,200.5,200.46,7.97]
[1759067538953,4.4866,200.51,200.46,7.97]
[1759067539256,3.53231369,200.5,200.46,7.97]
[1759067539557,4.4866,200.51,200.46,7.97]
[1759067539758,3.53231779,200.5,200.45,4.4877]
[1759067539954,4.4866,200.51,200.46,7.97]
[1759067540156,3.53231779,200.5,200.46,7.97]
[1759067540455,4.4866,200.51,200.46,7.97]
[1759067540652,3.5324618,200.5,200.45,4.4877]
[1759067540852,4.4866,200.51,200.45,4.4877]
[1759067541047,3.5324618,200.5,200.45,4.4877]
[1759067541257,4.4866,200.51,200.45,4.4877]
[1759067541554,3.53254336,200.5,200.46,7.97]
[1759067541748,4.4866,200.51,200.46,7.97]
[1759067541953,3.53254336,200.5,200.46,7.97]
[1759067542148,69.7703,200.57,200.46,7.97]
[1759067542348,3.53254489,200.56,200.46,7.97]
[1759067542563,4.4866,200.51,200.46,7.97]
[1759067542751,4.4866,200.51,200.45,4.4877]
[1759067543452,4.4866,200.51,200.46,7.99]
[1759067543956,3.53730102,200.5,200.46,7.99]
[1759067544146,4.4866,200.51,200.45,4.4877]
[1759067544351,4.4869,200.49,200.44,7.99]
[1759067544653,4.4869,200.49,200.43,5.00264071]
[1759067545154,4.4864,200.52,200.44,4.488]
[1759067545456,3.53766135,200.51,200.45,7.99]
[1759067545655,3.53766135,200.5,200.44,4.488]
[1759067545955,4.4866,200.51,200.45,7.99]
[1759067546150,3.53766135,200.5,200.44,4.488]
[1759067546355,4.4866,200.51,200.45,7.99]
[1759067546556,3.53787442,200.5,200.44,4.488]
[1759067546750,4.4866,200.51,200.45,7.99]
[1759067546952,3.53787442,200.5,200.46,7.99]
[1759067547152,4.4866,200.51,200.46,7.99]
[1759067547357,3.53821238,200.5,200.46,7.99]
[1759067547557,3.53821238,200.49,200.46,4.4875]
[1759067547757,75.36892167,200.57,200.46,12.4775]
[1759067548057,3.53821238,200.56,200.46,12.4775]
[1759067548257,3.53821238,200.55,200.46,12.4775]
[1759067548450,3.53821238,200.54,200.46,12.4775]
[1759067548646,4.4863,200.52,200.46,12.4775]
[1759067548851,4.4863,200.52,200.47,7.99]
[1759067548852,3.53821238,200.51,200.47,7.99]
[1759067549353,8.02481238,200.51,200.48,7.99]
[1759067549659,3.53821238,200.5,200.48,7.99]
[1759067549858,3.53821238,200.49,200.48,7.99]
[1759067550256,4.4862,200.53,200.46,7.99]
[1759067550454,3.53821238,200.52,200.45,4.4877]
[1759067550756,3.53821238,200.51,200.45,4.4877]
[1759067550955,3.53821238,200.5,200.45,4.4877]
[1759067551157,3.53821238,200.49,200.45,4.4877]
[1759067551351,4.4862,200.53,200.46,7.99]
[1759067551551,3.54010084,200.52,200.46,7.99]
[1759067551751,3.54010084,200.51,200.45,4.4877]
[1759067551955,3.54010084,200.5,200.46,7.99]
[1759067552155,3.54010084,200.49,200.45,4.4877]
[1759067552354,4.4862,200.53,200.46,7.99]
[1759067552551,3.54074797,200.52,200.46,7.99]
[1759067552753,3.54074797,200.51,200.45,4.4877]
[1759067552951,3.54074797,200.5,200.45,4.4877]
[1759067553152,3.54074797,200.49,200.46,7.99]
[1759067553352,4.4862,200.53,200.46,7.99]
[1759067553656,8.02753619,200.52,200.46,7.99]
[1759067553857,3.54123619,200.51,200.45,4.4877]
[1759067554060,3.54123619,200.5,200.46,7.99]
[1759067554249,3.54123619,200.49,200.43,12.99274071]
[1759067554452,69.777,200.55,200.43,12.99274071]
[1759067554756,3.5419406,200.54,200.43,12.99274071]
[1759067555056,3.5419406,200.53,200.43,12.99274071]
[1759067555257,3.5419406,200.52,200.43,12.99274071]
[1759067555453,3.5419406,200.51,200.43,12.99274071]
[1759067555660,8.0287406,200.5,200.43,12.99274071]
[1759067555956,3.5419406,200.49,200.43,12.99274071]
[1759067556158,3.5419406,200.48,200.43,5.00274071]
[1759067556660,8.0291406,200.48,200.43,0.51454071]
[1759067556855,3.5419406,200.47,200.43,0.51454071]
[1759067557055,3.5419406,200.47,200.44,7.99]
[1759067557255,3.5419406,200.47,200.43,0.51454071]
[1759067557467,3.5419406,200.47,200.44,7.99]
[1759067557760,3.5419406,200.47,200.43,0.51454071]
[1759067557957,3.5419406,200.47,200.44,7.99]
[1759067558159,3.5419406,200.47,200.43,0.51454071]
[1759067558564,3.5419406,200.47,200.44,7.99]
[1759067558758,4.4867,200.51,200.44,7.99]
[1759067558957,3.54490248,200.5,200.44,7.99]
[1759067559157,3.54490248,200.49,200.44,7.99]
[1759067559454,3.54490248,200.48,200.44,7.99]
[1759067559652,4.4862,200.53,200.45,4.4877]
[1759067559860,3.545863,200.52,200.46,7.99]
[1759067560060,3.545863,200.51,200.46,7.99]
[1759067560364,3.545863,200.5,200.46,7.99]
[1759067560559,3.545863,200.49,200.45,4.4877]
[1759067560860,4.4862,200.53,200.46,7.99]
[1759067561062,3.54664975,200.52,200.46,7.99]
[1759067561261,3.54664975,200.51,200.46,7.99]
[1759067561462,3.54664975,200.5,200.46,7.99]
[1759067561662,3.54664975,200.49,200.46,7.99]
[1759067561855,4.4862,200.53,200.47,7.99]
[1759067561856,3.54664975,200.48,200.47,7.99]
[1759067580683,3.54664975,200.48,200.47,129.85]
[1759067580878,4.4862,200.53,200.47,12.4773]
[1759067581078,3.56130982,200.52,200.49,8.08]
[1759067581278,3.56130982,200.51,200.47,4.4873]
[1759067581481,3.56130982,200.5,200.48,94.72]
[1759067581787,5.59862167,200.56,200.49,8.08]
[1759067581985,3.56114859,200.55,200.49,8.08]
[1759067582280,3.56114859,200.54,200.48,126.347]
[1759067582473,3.56114859,200.53,200.49,8.08]
[1759067582679,3.56114859,200.52,200.49,8.08]
[1759067582880,4.4855,200.56,200.5,8.08]
[1759067582881,3.56114859,200.51,200.5,8.08]
[1759067583476,3.56114859,200.51,200.5,129.94]
[1759067584888,3.56114859,200.51,200.5,121.86]
[1759067585481,3.56114859,200.51,200.47,8.08]
[1759067585685,3.56114859,200.5,200.45,4.4877]
[1759067585887,3.56114859,200.49,200.47,8.08]
[1759067586083,3.56114859,200.48,200.47,8.08]
[1759067586692,3.56114859,200.48,200.47,129.92]
[1759067588593,3.56114859,200.48,200.47,8.08]
[1759067589291,3.56114859,200.48,200.38,8.08]
[1759067589490,3.56114859,200.47,200.38,8.08]
[1759067589691,3.56114859,200.46,200.34,78.8271]
[1759067589992,5.59862167,200.53,200.39,8.08]
[1759067590189,9.15904508,200.52,200.39,8.08]
[1759067590393,4.487,200.49,200.42,4.4883]
[1759067590592,3.56042341,200.48,200.42,126.3283]
[1759067590795,3.56042341,200.47,200.43,7.92]
[1759067590989,3.56042341,200.46,200.43,7.92]
[1759067591293,3.56042341,200.45,200.44,7.92]
[1759067595297,3.56042341,200.45,200.43,7.92]
[1759067595497,3.56042341,200.44,200.43,7.92]
[1759067597295,4.4873,200.48,200.43,7.92]
[1759067597595,3.5588261,200.47,200.43,7.92]
[1759067597795,3.5588261,200.46,200.43,7.92]
[1759067597990,3.5588261,200.45,200.43,7.92]
[1759067598191,4.4873,200.48,200.43,7.92]
[1759067598393,4.4873,200.48,200.41,113.6486]
[1759067598394,3.55848507,200.47,200.41,113.6486]
[1759067598593,3.55848507,200.46,200.41,121.5686]
[1759067598794,3.55848507,200.45,200.41,7.92]
[1759067598997,3.55848507,200.44,200.41,7.92]
[1759067599199,3.55848507,200.43,200.41,7.92]
[1759067599397,5.59862167,200.5,200.41,7.92]
[1759067599590,4.4877,200.46,200.41,7.92]
[1759067599800,3.55808397,200.45,200.41,7.92]
[1759067600000,3.55808397,200.44,200.41,7.92]
[1759067600201,3.55808397,200.43,200.41,7.92]
[1759067600500,4.4877,200.46,200.41,7.92]
[1759067600703,3.55738794,200.45,200.41,7.92]
[1759067600999,3.55738794,200.44,200.41,7.92]
[1759067601204,3.55738794,200.43,200.41,7.92]
[1759067601393,4.4877,200.46,200.41,7.92]
[1759067601592,3.55675025,200.45,200.41,7.92]
[1759067601793,3.55675025,200.44,200.41,7.92]
[1759067602092,3.55675025,200.43,200.41,7.92]
[1759067602297,4.4877,200.46,200.41,7.92]
[1759067602602,3.55619944,200.45,200.41,7.92]
[1759067602903,3.55619944,200.44,200.41,12.4086]
[1759067603201,5.59862167,200.52,200.42,7.92]
[1759067603497,3.55579446,200.51,200.42,7.92]
[1759067603695,3.55579446,200.5,200.42,7.92]
[1759067603894,3.55579446,200.49,200.42,7.92]
[1759067604100,3.55579446,200.48,200.42,7.92]
[1759067604298,3.55579446,200.47,200.39,7.97]
[1759067604501,3.55579446,200.46,200.39,7.97]
[1759067604699,3.55579446,200.45,200.44,12.458]
[1759067605000,4.4868,200.5,200.44,12.458]
[1759067605302,3.56578654,200.49,200.45,7.97]
[1759067605500,3.56578654,200.48,200.45,7.97]
[1759067605702,3.56578654,200.47,200.45,7.97]
[1759067605894,3.56578654,200.46,200.45,7.97]
[1759067606496,5.59862167,200.54,200.38,191.6743]
[1759067606700,23.36,200.55,200.45,12.4576]
[1759067606701,3.56559681,200.53,200.45,12.4576]
[1759067606896,3.56559681,200.52,200.45,7.97]
[1759067607094,5.59862167,200.55,200.45,7.97]
[1759067607095,3.56559681,200.51,200.45,7.97]
[1759067607290,3.56559681,200.5,200.44,7.97]
[1759067607590,3.56559681,200.49,200.44,7.97]
[1759067607794,3.56559681,200.48,200.44,7.97]
[1759067608000,5.59862167,200.55,200.44,7.97]
[1759067608200,8.0511386,200.54,200.47,7.97]
[1759067608402,3.5652386,200.53,200.47,7.97]
[1759067608602,3.5652386,200.52,200.44,7.97]
[1759067608795,3.5652386,200.51,200.44,7.97]
[1759067608998,3.5652386,200.5,200.49,7.97]
[1759067609515,4.4854,200.56,200.49,7.97]
[1759067609697,3.56431204,200.55,200.49,7.97]
[1759067609903,3.56431204,200.54,200.49,7.97]
[1759067610103,3.56431204,200.53,200.48,4.487]
[1759067610299,3.56431204,200.52,200.49,7.97]
[1759067610494,3.56452812,200.51,200.49,7.97]
[1759067610700,3.56452812,200.5,200.49,7.97]
[1759067611003,4.4852,200.57,200.49,7.97]
[1759067611206,3.56411346,200.56,200.49,7.97]
[1759067611400,3.56411346,200.55,200.49,7.97]
[1759067611707,3.56411346,200.54,200.48,4.487]
[1759067611904,3.56411346,200.53,200.48,4.487]
[1759067612105,3.56411346,200.52,200.49,7.97]
[1759067612403,3.56411346,200.51,200.49,7.97]
[1759067612604,4.4857,200.55,200.49,7.97]
[1759067612798,3.56410301,200.54,200.48,4.487]
[1759067612995,3.56410301,200.53,200.49,7.97]
[1759067613199,3.56410301,200.52,200.48,4.487]
[1759067613400,3.56410301,200.51,200.48,4.487]
[1759067613597,4.4857,200.55,200.49,7.97]
[1759067613800,3.56400904,200.54,200.48,4.487]
[1759067614003,3.56400904,200.53,200.49,7.97]
[1759067614205,3.56400904,200.52,200.49,7.97]
[1759067614399,3.56400904,200.51,200.49,7.97]
[1759067614606,4.4857,200.55,200.49,7.97]
[1759067614808,3.56375119,200.54,200.49,7.97]
[1759067615011,3.56375119,200.53,200.48,4.487]
[1759067615308,3.56375119,200.52,200.48,4.487]
[1759067615508,3.56375119,200.51,200.48,4.487]
[1759067615711,4.4857,200.55,200.49,7.97]
[1759067616010,3.56359897,200.54,200.48,4.487]
[1759067616207,3.56359897,200.53,200.48,4.487]
[1759067616408,3.56359897,200.52,200.48,4.487]
[1759067616609,3.56359897,200.51,200.49,7.97]
[1759067616815,4.4857,200.55,200.49,7.97]
[1759067617010,4.4857,200.55,200.48,4.487]
[1759067617011,3.56345054,200.54,200.48,4.487]
[1759067617207,3.56345054,200.53,200.49,7.97]
[1759067617513,3.56345054,200.52,200.49,7.97]
[1759067617809,3.56345054,200.51,200.5,7.97]
[1759067618014,3.56345054,200.57,200.5,7.97]
[1759067618216,3.56345054,200.56,200.5,7.97]
[1759067618515,3.56345054,200.55,200.5,7.97]
[1759067618707,3.56345054,200.54,200.49,4.4868]
[1759067618911,3.56345054,200.53,200.5,7.97]
[1759067619113,3.56345054,200.52,200.5,7.97]
[1759067619412,3.56345054,200.51,200.5,7.97]
[1759067623908,3.56287843,200.51,200.5,12.4566]
[1759067626615,4.4852,200.57,200.5,12.4566]
[1759067626814,3.56249957,200.56,200.5,12.4566]
[1759067627019,3.56249957,200.55,200.51,7.97]
[1759067627317,3.56249957,200.54,200.51,7.97]
[1759067627612,3.56249957,200.53,200.51,7.97]
[1759067627814,4.4852,200.57,200.51,7.97]
[1759067627815,3.56249957,200.52,200.51,7.97]
[1759067628010,3.56249957,200.56,200.51,7.97]
[1759067628208,3.56249957,200.55,200.36,8.9794]
[1759067628407,3.56249957,200.54,200.41,101.31]
[1759067628609,4.487,200.49,200.43,4.4882]
[1759067628817,3.56249957,200.48,200.41,7.97]
[1759067629018,3.56249957,200.47,200.41,7.97]
[1759067629214,3.56249957,200.46,200.41,7.97]
[1759067629408,3.56249957,200.45,200.41,12.4586]
[1759067629615,4.4868,200.5,200.41,12.4586]
[1759067629815,3.56411847,200.49,200.41,12.4586]
[1759067630118,3.56411847,200.48,200.41,12.4586]
[1759067630420,3.56411847,200.47,200.41,12.4586]
[1759067630614,3.56411847,200.46,200.41,4.4886]
[1759067630819,3.56411847,200.45,200.42,7.97]
[1759067631022,4.4873,200.48,200.42,7.97]
[1759067631321,3.56404991,200.47,200.42,7.97]
[1759067631613,3.56404991,200.46,200.42,7.97]
[1759067631820,3.56404991,200.45,200.42,7.97]
[1759067632117,4.4875,200.47,200.42,7.97]
[1759067632317,3.56373039,200.46,200.42,7.97]
[1759067632514,3.56373039,200.45,200.42,7.97]
[1759067632714,4.4875,200.47,200.42,7.97]
[1759067632914,3.56373039,200.46,200.42,7.97]
[1759067633117,3.56373039,200.45,200.42,7.97]
[1759067633312,121.78,200.52,200.42,12.4583]
[1759067633313,4.4869,200.5,200.42,12.4583]
[1759067633511,3.56357711,200.49,200.42,12.4583]
[1759067633720,3.56357711,200.48,200.42,7.97]
[1759067633921,3.56357711,200.47,200.42,7.97]
[1759067634120,5.59862167,200.53,200.42,7.97]
[1759067634121,3.56357711,200.46,200.42,7.97]
[1759067634317,4.4866,200.51,200.44,12.5579]
[1759067634524,3.56446549,200.5,200.44,12.5579]
[1759067634723,3.56446549,200.49,200.45,8.07]
[1759067635025,3.56446549,200.48,200.45,8.07]
[1759067635226,3.56446549,200.47,200.45,8.07]
[1759067635525,3.56446549,200.46,200.45,8.07]
[1759067637326,4.4863,200.52,200.45,12.5576]
[1759067637527,3.56427441,200.51,200.45,12.5576]
[1759067637717,3.56427441,200.5,200.45,4.4876]
[1759067637917,3.56427441,200.49,200.46,8.07]
[1759067638121,3.56427441,200.48,200.46,8.07]
[1759067638322,3.56427441,200.47,200.46,8.07]
[1759067639925,3.5640691,200.47,200.46,8.07]
[1759067640324,4.4863,200.52,200.46,8.07]
[1759067640620,3.56344291,200.51,200.47,8.07]
[1759067640817,3.56344291,200.5,200.47,8.07]
[1759067641022,3.56344291,200.49,200.47,8.07]
[1759067641327,4.4863,200.52,200.46,4.4875]
[1759067641523,3.56338779,200.51,200.47,8.07]
[1759067641718,3.56338779,200.5,200.46,4.4875]
[1759067641922,3.56338779,200.49,200.47,8.07]
[1759067642228,4.4863,200.52,200.46,12.5575]
[1759067642425,3.56361643,200.51,200.47,8.07]
[1759067642630,3.56361643,200.5,200.47,8.07]
[1759067642818,3.56361643,200.49,200.46,4.4875]
[1759067643023,69.7775,200.55,200.45,8.07]
[1759067643219,3.56403017,200.54,200.45,8.07]
[1759067643430,3.56403017,200.53,200.44,4.488]
[1759067643630,3.56403017,200.52,200.44,4.488]
[1759067643830,3.56403017,200.51,200.44,4.488]
[1759067644129,3.56403017,200.5,200.44,4.488]
[1759067644330,3.56403017,200.49,200.44,12.558]
[1759067644524,3.56403017,200.48,200.44,12.558]
[1759067644727,4.4868,200.5,200.44,12.558]
[1759067645028,3.56457812,200.49,200.44,12.558]
[1759067645231,3.56457812,200.48,200.44,4.488]
[1759067645423,3.56457812,200.47,200.45,8.07]
[1759067645623,4.4868,200.5,200.45,8.07]
[1759067645820,3.56502183,200.49,200.45,8.07]
[1759067646025,3.56502183,200.48,200.45,8.07]
[1759067646227,3.56502183,200.47,200.45,8.07]
[1759067646427,4.4868,200.5,200.45,8.07]
[1759067646630,3.56549385,200.49,200.45,8.07]
[1759067646833,3.56549385,200.48,200.45,8.07]
[1759067647033,3.56549385,200.47,200.45,8.07]
[1759067647230,4.4868,200.5,200.45,8.07]
[1759067647534,3.56599722,200.49,200.45,8.07]
[1759067647734,3.56599722,200.48,200.44,4.488]
[1759067647937,3.56599722,200.47,200.44,4.488]
[1759067648135,4.4868,200.5,200.44,12.558]
[1759067648436,3.5662315,200.49,200.45,8.07]
[1759067648630,3.5662315,200.48,200.45,8.07]
[1759067648833,3.5662315,200.47,200.45,8.07]
[1759067649131,4.487,200.49,200.45,8.07]
[1759067649330,3.56652297,200.48,200.43,8.07]
[1759067649536,4.487,200.49,200.42,4.4885]
[1759067649537,3.56652297,200.47,200.42,4.4885]
[1759067649738,4.487,200.49,200.43,8.07]
[1759067649931,8.05393343,200.48,200.42,4.4885]
[1759067650132,3.56663343,200.47,200.43,8.07]
[1759067650332,4.4873,200.48,200.43,8.07]
[1759067650533,3.56677312,200.47,200.43,7.93]
[1759067650733,4.4873,200.48,200.42,4.4885]
[1759067651032,3.56677312,200.47,200.42,4.4885]
[1759067651237,4.4873,200.48,200.42,4.4885]
[1759067651438,3.56704449,200.47,200.42,4.4885]
[1759067651635,4.4875,200.47,200.42,4.4885]
[1759067651834,3.5670808,200.46,200.43,7.93]
[1759067652030,69.7911,200.51,200.4,7.93]
[1759067652232,73.36119247,200.5,200.4,7.93]
[1759067652430,3.56719247,200.49,200.4,7.93]
[1759067652640,3.56719247,200.48,200.4,7.93]
[1759067652836,3.56719247,200.47,200.4,7.93]
[1759067653042,3.56719247,200.46,200.4,7.93]
[1759067653244,4.487,200.49,200.44,7.93]
[1759067653543,3.5664748,200.48,200.44,7.93]
[1759067653738,78.7488,200.55,200.44,7.93]
[1759067653739,3.5664748,200.47,200.44,7.93]
[1759067653941,4.4868,200.5,200.44,12.4179]
[1759067654140,3.56621451,200.49,200.45,7.93]
[1759067654337,3.56621451,200.48,200.45,7.93]
[1759067654550,3.56621451,200.47,200.46,7.93]
[1759067654743,4.4868,200.5,200.46,7.93]
[1759067654946,3.56581891,200.49,200.47,4.4873]
[1759067655146,5.59862167,200.56,200.47,4.4873]
[1759067655147,5.59862167,200.56,200.48,7.93]
[1759067655346,3.56575258,200.55,200.48,7.93]
[1759067655642,3.56575258,200.54,200.48,7.93]
[1759067655847,3.56575258,200.53,200.47,4.4873]
[1759067656046,3.56575258,200.52,200.47,4.4873]
[1759067656244,3.56575258,200.51,200.48,7.93]
[1759067656441,3.56575258,200.5,200.47,4.4873]
[1759067656645,3.56575258,200.49,200.48,7.93]
[1759067657042,3.56575258,200.49,200.47,4.4873]
[1759067657242,4.4858,200.54,200.48,7.93]
[1759067657442,3.56623819,200.53,200.48,7.93]
[1759067657743,3.56623819,200.52,200.47,4.4873]
[1759067657946,3.56623819,200.51,200.47,4.4873]
[1759067658247,3.56623819,200.5,200.48,7.93]
[1759067658447,3.56623819,200.49,200.48,7.93]
[1759067660043,3.56623819,200.53,200.48,7.93]
[1759067660249,3.56623819,200.52,200.47,4.4873]
[1759067660448,3.56623819,200.51,200.48,7.93]
[1759067660748,3.56623819,200.5,200.47,4.4873]
[1759067660946,3.56623819,200.49,200.48,7.93]
[1759067662745,3.56623819,200.49,200.45,4.4877]
[1759067663047,3.56736601,200.48,200.43,4.4882]
[1759067663246,3.56736601,200.47,200.44,7.93]
[1759067663448,24.51862167,200.54,200.44,7.93]
[1759067663648,3.56779008,200.53,200.44,7.93]
[1759067663850,3.56779008,200.52,200.44,7.93]
[1759067664046,4.4868,200.5,200.44,12.4179]
[1759067664247,3.56779008,200.49,200.41,7.38]
[1759067664445,3.56779008,200.48,200.41,7.38]
[1759067664645,3.56779008,200.47,200.41,7.38]
[1759067664946,5.59862167,200.54,200.41,7.38]
[1759067665143,3.56478094,200.53,200.41,7.38]
[1759067665348,78.1674325,200.57,200.51,7.38]
[1759067665349,3.56478094,200.52,200.51,7.38]
[1759067665744,3.56478094,200.52,200.44,69.8141]
[1759067665952,3.56478094,200.51,200.45,7.38]
[1759067666254,3.56478094,200.5,200.45,7.38]
[1759067666446,5.59862167,200.57,200.45,7.38]
[1759067666643,3.56434642,200.56,200.45,7.38]
[1759067666846,3.56434642,200.55,200.45,7.38]
[1759067667148,3.56434642,200.54,200.45,7.38]
[1759067667349,3.56434642,200.53,200.45,7.38]
[1759067667544,3.56434642,200.52,200.47,4.4872]
[1759067667746,3.56434642,200.51,200.47,4.4872]
[1759067667948,3.56434642,200.5,200.48,7.38]
[1759067668152,3.56434642,200.49,200.48,7.38]
[1759067679475,3.56434642,200.49,200.46,7.38]
[1759067679671,3.56434642,200.48,200.46,7.38]
[1759067679866,5.59862167,200.55,200.45,11.8677]
[1759067680071,3.56786443,200.54,200.45,11.8677]
[1759067680270,5.59862167,200.55,200.45,11.8677]
[1759067680271,3.56786443,200.53,200.45,11.8677]
[1759067680472,3.56786443,200.52,200.45,11.8677]
[1759067680672,8.05446443,200.51,200.45,11.8677]
[1759067680875,3.56786443,200.5,200.46,7.38]
[1759067681172,3.56786443,200.49,200.46,7.38]
[1759067681475,3.56786443,200.48,200.46,7.38]
[1759067681774,4.4866,200.51,200.46,7.38]
[1759067681976,3.56828204,200.5,200.45,4.4877]
[1759067682275,3.56828204,200.49,200.46,7.38]
[1759067682478,3.56828204,200.48,200.45,4.4877]
[1759067682774,4.4866,200.51,200.45,11.8677]
[1759067682974,3.5685318,200.5,200.45,4.4877]
[1759067683175,3.5685318,200.49,200.45,4.4877]
[1759067683372,3.5685318,200.48,200.46,7.38]
[1759067683574,4.4866,200.51,200.46,7.38]
[1759067683774,3.56871908,200.5,200.45,4.4877]
[1759067683976,3.56871908,200.49,200.45,4.4877]
[1759067684276,3.56871908,200.48,200.46,7.38]
[1759067684576,3.56871908,200.47,200.46,7.38]
[1759067688474,3.56871908,200.47,200.45,4.4877]
[1759067688679,96.5938,200.56,200.45,4.4877]
[1759067688680,5.59862167,200.54,200.45,4.4877]
[1759067688874,3.5690631,200.53,200.45,4.4877]
[1759067689081,3.5690631,200.52,200.45,4.4877]
[1759067689280,3.5690631,200.51,200.45,4.4877]
[1759067689581,8.0558631,200.5,200.46,7.38]
[1759067689779,3.5690631,200.49,200.46,7.38]
[1759067689978,3.5690631,200.48,200.46,7.38]
[1759067690176,3.5690631,200.47,200.46,7.38]
[1759067696582,4.4863,200.52,200.46,7.38]
[1759067696583,4.4863,200.52,200.47,4.4872]
[1759067696785,3.56225643,200.51,200.48,7.86]
[1759067696987,3.56225643,200.5,200.48,7.86]
[1759067697282,3.56225643,200.49,200.48,7.86]
[1759067699387,5.59862167,200.56,200.48,8.36]
[1759067699574,5.59862167,200.57,200.48,7.86]
[1759067700175,5.59862167,200.58,200.54,7.86]
[1759067700380,0.86806855,200.59,200.5,7.86]
[1759067700381,5.59862167,200.59,200.5,7.86]
[1759067701481,5.59862167,200.6,200.5,7.86]
[1759067701683,5.59862167,200.6,200.54,4.4857]
[1759067701883,5.59862167,200.6,200.53,7.86]
[1759067702387,4.485,200.58,200.53,7.86]
[1759067702990,5.59862167,200.6,200.53,12.3459]
[1759067703690,10.08322167,200.6,200.53,12.3459]
[1759067703890,5.59862167,200.6,200.53,12.3459]
[1759067704694,4.4848,200.59,200.53,12.3459]
[1759067705394,4.4848,200.59,200.53,7.86]
[1759067705880,5.59862167,200.6,200.55,4.4854]
[1759067706082,5.59862167,200.61,200.55,4.4854]